[Event "Stockholm Chess Challenge 2019"]
[Site "Stockholm"]
[Date "2019.05.01"]
[Round "8.4"]
[White "Seo, Jung Min"]
[Black "Kenneskog, Theodor"]
[Result "1/2-1/2"]
[ECO "D77"]
[WhiteElo "2386"]
[BlackElo "2306"]
[Annotator "NA"]
[PlyCount "94"]
[EventDate "2019.04.26"]
[EventType "swiss"]
[EventCountry "SWE"]
[SourceTitle "playchess.com"]
[Source "ChessBase"]
[SourceQuality "1"]
[TimeControl "40/5400+30:900+30"]

1. d4 {[%emt 0:00:00]} Nf6 {[%emt 0:00:00]} 2. c4 {[%emt 0:00:00]} g6 {[%emt 0:00:00]} 3. Nf3 {[%emt 0:00:00]} Bg7 {[%emt 0:00:00]} 4. g3 {[%emt 0:00:00]} O-O {[%emt 0:00:00]} 5. Bg2 {[%emt 0:00:00]} d5 {[%emt 0:00:00]} 6. O-O {[%emt 0:01:36]} Nc6 {[%emt 0:00:00]} 7. Nbd2 {[%emt 0:01:00]} a5 {[%emt 0:00:57]} 8. b3 {[%emt 0:02:35]} dxc4 {[%emt 0:00:22]} (8... Ne4 $11) 9. Nxc4 {[%emt 0:00:04]} Be6 {[%emt 0:00:05]} 10. Bb2 {[%emt 0:01:01]} Bd5 {[%emt 0:09:53]} 11. Rc1 {[%emt 0:01:18]} a4 {[%emt 0:00:27]} 12. bxa4 {[%emt 0:03:29]} Ra6 {[%emt 0:00:07]} 13. a3 {[%emt 0:03:16]} Qa8 {[%emt 0:00:59]} 14. a5 {[%emt 0:00:56] D77: Fianchetto Grünfeld: 6 0-0: Replies other than 6...c6} (14. Ne3 Be4 15. d5 Rd8 16. Bxf6 Bxf6 17. Nd2 Bxg2 18. Kxg2 Ne5 19. Rxc7 Rxa4 20. Qb3 Rxa3 21. Qxb7 Qxb7 22. Rxb7 {½-½ (43) Huzman,A (2552)-Dvoirys,S (2552) Jerusalem 2017}) 14... Rc8 {[%emt 0:09:50]} 15. Ne3 {[%emt 0:06:36]} Be4 {[%emt 0:06:56]} 16. Ne5 $146 {[%emt 0:13:55]} ({Predecessor:} 16. d5 Nxa5 17. Bh3 Rd8 18. Bxf6 Bxf6 19. Rxc7 b5 20. Nd4 Bxd5 21. Rc8 Rxc8 22. Bxc8 Rb6 23. Ndf5 e6 24. Nh6+ Kg7 25. Nhg4 Bc3 {0-1 (25) Symersky,P (2000)-Travnik,P (2145) Czech Republic 2000}) 16... Bxg2 {[%emt 0:03:56]} 17. Nxg2 {[%emt 0:01:45]} Rxa5 {[%emt 0:02:42]} 18. Nxc6 {[%emt 0:06:47]} bxc6 {[%emt 0:00:14]} 19. Bc3 {[%emt 0:01:48]} Ra4 {[%emt 0:04:01]} 20. Ne1 {[%emt 0:05:49]} Nd5 {[%emt 0:04:41]} 21. Bb2 {[%emt 0:00:48]} Rb8 {[%emt 0:00:37]} 22. Rc2 {[%emt 0:02:40]} c5 {[%emt 0:06:41]} 23. Rxc5 {[%emt 0:04:05]} Rxb2 {[%emt 0:05:12]} 24. Rxd5 {[%emt 0:00:02]} Rxa3 {[%emt 0:00:23]} 25. Rd7 {[%emt 0:03:42]} Ra1 {[%emt 0:03:03]} 26. Rd8+ {[%emt 0:01:03]} Qxd8 {[%emt 0:00:05]} 27. Qxa1 {[%emt 0:00:01]} Rxe2 {[%emt 0:00:36]} 28. Nf3 {[%emt 0:00:06]} Qd5 {[%emt 0:02:23]} 29. Kg2 {[%emt 0:00:22]} g5 {[%emt 0:18:19]} 30. Qa6 {[%emt 0:00:41]} Qe4 {[%emt 0:00:06]} 31. Qc8+ {[%emt 0:00:52]} Bf8 {[%emt 0:00:02]} 32. g4 {[%emt 0:00:58]} e6 {[%emt 0:16:00]} 33. Qxc7 {[%emt 0:09:21]} h5 {[%emt 0:00:18]} 34. Qe5 {[%emt 0:04:53]} Qxg4+ {[%emt 0:00:18]} 35. Qg3 {[%emt 0:00:04]} Qxg3+ {[%emt 0:00:15]} 36. hxg3 {[%emt 0:00:23]} g4 {[%emt 0:00:24]} 37. Ne5 {[%emt 0:02:11]} Bg7 {[%emt 0:00:25]} 38. Nc6 {[%emt 0:00:06]} Rd2 {[%emt 0:07:12]} 39. Rh1 {[%emt 0:00:12]} Bxd4 {[%emt 0:00:12]} 40. Nxd4 Rxd4 {[%emt 0:00:04]} 41. Rxh5 {[%emt 0:15:07]} Kg7 {[%emt 0:16:05]} 42. Rh1 {[%emt 0:00:10]} Rd2 {[%emt 0:00:07]} 43. Re1 {[%emt 0:00:10]} Kg6 {[%emt 0:00:32]} 44. Re4 {[%emt 0:00:17]} Kg5 {[%emt 0:00:05]} 45. Re5+ {[%emt 0:00:14]} Kg6 {[%emt 0:00:42]} 46. Re4 {[%emt 0:00:05]} Kg5 $11 47. Rd4 Rxd4 1/2-1/2

[Event "Stockholm Chess Challenge 2019"]
[Site "Stockholm"]
[Date "2019.05.01"]
[Round "8.5"]
[White "Savitha Shri B"]
[Black "Siddharth, Jagadeesh"]
[Result "0-1"]
[ECO "B30"]
[WhiteElo "1895"]
[BlackElo "2132"]
[Annotator "NA"]
[PlyCount "96"]
[EventDate "2019.04.26"]
[EventType "swiss"]
[EventCountry "SWE"]
[SourceTitle "playchess.com"]
[Source "ChessBase"]
[SourceQuality "1"]
[TimeControl "40/5400+30:900+30"]

1. e4 {[%emt 0:00:00]} c5 {[%emt 0:00:00]} 2. Nf3 {[%emt 0:00:09]} Nc6 {[%emt 0:00:00]} 3. Nc3 {[%emt 0:00:01]} e5 {[%emt 0:00:00]} 4. Bc4 {[%emt 0:00:11]} d6 {[%emt 0:00:29]} 5. d3 {[%emt 0:02:15]} Be7 {[%emt 0:00:03]} 6. Nd5 {[%emt 0:07:06]} Nf6 {[%emt 0:02:06]} 7. O-O {[%emt 0:00:34]} Nxd5 {[%emt 0:02:45]} 8. Bxd5 {[%emt 0:00:22]} O-O {[%emt 0:00:42]} 9. c3 {[%emt 0:02:39]} Bg4 {[%emt 0:04:40]} 10. Be3 {[%emt 0:03:53]} Qd7 {[%emt 0:01:31]} 11. h3 {[%emt 0:02:48]} Bh5 {[%emt 0:00:36]} 12. Nxe5 {[%emt 0:01:01]} Nxe5 {[%emt 0:05:34]} 13. Qxh5 {[%emt 0:00:15]} Nxd3 {[%emt 0:00:48]} 14. Rfd1 {[%emt 0:01:55]} Nxb2 {[%emt 0:02:59]} 15. Rdb1 {[%emt 0:01:13]} Na4 {[%emt 0:01:55]} 16. Rxb7 {[%emt 0:02:13]} Qd8 {[%emt 0:02:06]} 17. Qg4 {[%emt 0:06:07]} Nb6 {[%emt 0:03:24]} 18. Rb1 {[%emt 0:01:22]} Rb8 {[%emt 0:08:30]} 19. Rxb8 {[%emt 0:20:14]} Qxb8 {[%emt 0:00:11]} 20. Bb3 {[%emt 0:00:20]} Bf6 {[%emt 0:04:35]} 21. Bg5 {[%emt 0:16:23]} Qd8 {[%emt 0:01:54]} 22. h4 {[%emt 0:01:32]} Qe7 {[%emt 0:05:29]} 23. Rd1 {[%emt 0:02:26]} Re8 {[%emt 0:04:38]} 24. Bxf6 {[%emt 0:10:08]} Qxf6 {[%emt 0:00:16]} 25. Qg3 {[%emt 0:00:12]} c4 {[%emt 0:08:39]} 26. Bc2 {[%emt 0:00:35]} Re6 {[%emt 0:01:19]} 27. f4 {[%emt 0:00:31]} Qe7 {[%emt 0:02:50]} 28. Qg5 {[%emt 0:04:45]} f6 {[%emt 0:03:43]} 29. Qb5 {[%emt 0:02:02]} g6 {[%emt 0:13:59]} 30. a4 {[%emt 0:00:41]} f5 {[%emt 0:09:19]} 31. a5 {[%emt 0:01:22]} Nd7 {[%emt 0:00:14]} 32. e5 {[%emt 0:02:09]} Nf8 {[%emt 0:02:43]} 33. Qxc4 {[%emt 0:02:04]} dxe5 {[%emt 0:00:38]} 34. Bb3 {[%emt 0:00:36]} Kg7 {[%emt 0:01:02]} 35. Qb5 {[%emt 0:05:25]} a6 {[%emt 0:01:41]} 36. Qb4 {[%emt 0:01:02]} Qa7+ {[%emt 0:01:29]} 37. Kh1 {[%emt 0:00:01]} Re8 {[%emt 0:01:24]} 38. Qc4 {[%emt 0:00:49]} exf4 {[%emt 0:01:59]} 39. Qxf4 {[%emt 0:00:22]} Re4 {[%emt 0:00:20]} 40. Qg3 {[%emt 0:01:05]} Qe7 {[%emt 0:01:19]} 41. Rd4 Re3 {[%emt 0:00:57]} 42. Qd6 {[%emt 0:05:51]} Re1+ {[%emt 0:02:24]} 43. Kh2 {[%emt 0:00:08]} Qe3 {[%emt 0:00:34]} 44. Rd3 {[%emt 0:02:10]} Qg1+ {[%emt 0:00:34]} 45. Kh3 {[%emt 0:00:07]} Re4 {[%emt 0:00:19]} 46. Qd5 {[%emt 0:08:24]} Qh1+ {[%emt 0:00:21]} 47. Kg3 {[%emt 0:00:02]} Qxh4+ {[%emt 0:00:09]} 48. Kf3 {[%emt 0:00:03]} Qf4# {[%emt 0:00:07]} 0-1

[Event "Stockholm Chess Challenge 2019"]
[Site "Stockholm"]
[Date "2019.05.01"]
[Round "8.6"]
[White "Trost, Edvin"]
[Black "Jogstad, Martin"]
[Result "0-1"]
[ECO "C16"]
[WhiteElo "2075"]
[BlackElo "2267"]
[Annotator "NA"]
[PlyCount "104"]
[EventDate "2019.04.26"]
[EventType "swiss"]
[EventCountry "SWE"]
[SourceTitle "playchess.com"]
[Source "ChessBase"]
[SourceQuality "1"]
[TimeControl "40/5400+30:900+30"]

1. e4 {[%emt 0:00:00]} e6 {[%emt 0:00:08]} 2. d4 {[%emt 0:00:00]} d5 {[%emt 0:00:05]} 3. Nc3 {[%emt 0:00:00]} Bb4 {[%emt 0:00:05]} 4. e5 {[%emt 0:00:00]} b6 {[%emt 0:00:04]} 5. a3 {[%emt 0:01:21]} Bf8 {[%emt 0:00:18]} 6. f4 {[%emt 0:02:48]} Ne7 {[%emt 0:00:17]} 7. Be3 {[%emt 0:04:37] C16: French: 3 Nc3 Bb4 4 e5: Lines without ...c5} h5 {[%emt 0:13:27]} 8. Nf3 {[%emt 0:05:51]} Nf5 {[%emt 0:09:17]} 9. Bf2 {[%emt 0:00:50]} Ba6 {[%emt 0:02:26]} 10. Bxa6 {[%emt 0:04:10]} Nxa6 {[%emt 0:00:03]} 11. Qd3 {[%emt 0:00:37]} Nb8 {[%emt 0:00:27]} 12. Ne2 {[%emt 0:01:16]} (12. O-O-O c5 13. dxc5 bxc5 14. Qb5+ Qd7 15. Nh4 {½-½ (48) Ninov,N (2435)-Sequera Paolini,J (2413) Rochefort 2015}) 12... c5 $146 {[%emt 0:24:27]} ({Predecessor:} 12... Qd7 13. c4 c6 14. Rc1 {1-0 (31) Akhmetov,A (2093)-Ruiz Castillo,J (2096) Kayseri 2010}) 13. c3 {[%emt 0:06:46]} Nc6 {[%emt 0:02:52]} 14. O-O {[%emt 0:04:03]} Rc8 {[%emt 0:04:47]} 15. g3 {[%emt 0:16:56]} Be7 {[%emt 0:04:18]} 16. Kg2 {[%emt 0:07:21]} Qd7 {[%emt 0:00:47]} 17. h3 {[%emt 0:01:17]} Nh6 {[%emt 0:02:01]} 18. Rh1 {[%emt 0:02:23]} c4 {[%emt 0:01:23]} 19. Qc2 {[%emt 0:00:44]} Kd8 {[%emt 0:00:15]} 20. Qd1 {[%emt 0:16:46]} Kc7 {[%emt 0:01:16]} 21. Nh2 {[%emt 0:01:30]} Kb7 {[%emt 0:02:08]} 22. g4 {[%emt 0:00:43]} (22. Nf3 $15) 22... hxg4 {[%emt 0:00:47]} 23. hxg4 {[%emt 0:00:20]} Rcg8 {[%emt 0:02:57]} 24. Be3 {[%emt 0:07:19]} g5 {[%emt 0:02:25]} 25. Kf3 $2 {[%emt 0:00:10]} (25. fxg5 $17 {is a better defense.} Bxg5 26. Bxg5 Rxg5 27. Qd2) 25... f5 {[%emt 0:01:34]} 26. fxg5 {[%emt 0:02:24]} Bxg5 {[%emt 0:02:40]} 27. gxf5 {[%emt 0:01:34]} Nxf5 {[%emt 0:01:31]} 28. Bxg5 {[%emt 0:00:20]} Rxg5 {[%emt 0:04:27]} 29. Kf2 {[%emt 0:08:59]} Rg2+ {[%emt 0:02:50]} 30. Kxg2 {[%emt 0:00:38]} Ne3+ {[%emt 0:00:02]} 31. Kf2 {[%emt 0:00:01]} Nxd1+ {[%emt 0:00:14]} 32. Raxd1 {[%emt 0:00:04]} Qh7 {[%emt 0:01:12]} 33. Nf3 {[%emt 0:00:29]} Qxh1 {[%emt 0:00:48]} 34. Rxh1 {[%emt 0:00:01]} Rxh1 {[%emt 0:00:08]} 35. Nf4 {[%emt 0:00:05]} Nd8 {[%emt 0:01:04]} 36. Ng5 {[%emt 0:00:04]} Rb1 {[%emt 0:00:28]} 37. Nfxe6 {[%emt 0:00:06]} Nxe6 {[%emt 0:00:15]} 38. Nxe6 {[%emt 0:00:07]} Rxb2+ {[%emt 0:00:05]} 39. Ke3 {[%emt 0:00:01]} Rc2 {[%emt 0:00:46]} 40. Kf4 {[%emt 0:00:05]} Rxc3 {[%emt 0:00:30]} 41. Ng5 {[%emt 0:15:43]} Rc1 {[%emt 0:16:10]} (41... Kc6 $142 42. Nf3 Rxa3) 42. Kf5 {[%emt 0:00:08]} Rf1+ {[%emt 0:01:03]} 43. Nf3 {[%emt 0:00:57]} Rxf3+ {[%emt 0:00:13] Double Attack} 44. Kg4 {[%emt 0:00:04]} Re3 {[%emt 0:00:06]} 45. e6 {[%emt 0:00:04]} c3 {[%emt 0:00:09]} 46. e7 {[%emt 0:00:03]} Rxe7 {[%emt 0:00:10]} 47. a4 {[%emt 0:00:04]} c2 {[%emt 0:00:04]} 48. a5 {[%emt 0:00:04]} c1=Q {[%emt 0:00:08]} 49. a6+ {[%emt 0:00:03]} Kxa6 {[%emt 0:00:08]} 50. Kf5 {[%emt 0:00:05]} Re2 {[%emt 0:00:24]} 51. Kg4 Qf1 {[%emt 0:00:19]} 52. Kg3 {[%emt 0:00:28]} Rg2+ {[%emt 0:00:06]} 0-1

[Event "Stockholm Chess Challenge 2019"]
[Site "Stockholm"]
[Date "2019.05.01"]
[Round "8.7"]
[White "Crevatin, Leo"]
[Black "Dev, Shah"]
[Result "1-0"]
[ECO "D10"]
[WhiteElo "2208"]
[BlackElo "2020"]
[Annotator "NA"]
[PlyCount "120"]
[EventDate "2019.04.26"]
[EventType "swiss"]
[EventCountry "SWE"]
[SourceTitle "playchess.com"]
[Source "ChessBase"]
[SourceQuality "1"]
[TimeControl "40/5400+30:900+30"]

1. d4 {[%emt 0:00:00]} d5 {[%emt 0:01:18]} 2. c4 {[%emt 0:00:01]} c6 {[%emt 0:00:01]} 3. cxd5 {[%emt 0:00:08]} cxd5 {[%emt 0:00:05]} 4. Bf4 {[%emt 0:00:04]} Nf6 {[%emt 0:00:13]} 5. e3 {[%emt 0:00:02]} Nc6 {[%emt 0:00:29]} 6. Nc3 {[%emt 0:00:01]} a6 {[%emt 0:00:15]} 7. Be2 {[%emt 0:00:07]} e6 {[%emt 0:04:03] D10: Slav Defence: 3 cxd5 (without early Nf3) and 3 Nc3} 8. Rc1 {[%emt 0:03:03]} Bd6 {[%emt 0:03:15]} (8... Be7 9. h3 O-O 10. Nf3 b5 11. O-O Bb7 12. Bd3 Rc8 13. Qe2 Qa5 14. a3 b4 15. axb4 Nxb4 {1-0 (75) Li,C (2732)-Duda,J (2724) Liaocheng 2018}) 9. Bxd6 {[%emt 0:00:08]} Qxd6 {[%emt 0:00:02]} 10. f4 {[%emt 0:00:12]} O-O {[%emt 0:05:16]} 11. Nf3 {[%emt 0:00:09]} Nd7 $146 {[%emt 0:04:48]} ({Predecessor:} 11... b5 12. O-O Bd7 13. Ne5 Na5 14. b3 b4 15. Nxd7 Nxd7 {1-0 (49) Michalik,P (2549)-Jirka,J (2424) Czech Republic 2017}) 12. O-O {[%emt 0:01:55]} f6 {[%emt 0:01:21]} 13. Bd3 {[%emt 0:05:48]} b5 {[%emt 0:13:41]} 14. Qc2 {[%emt 0:09:00]} f5 {[%emt 0:11:37] [#]} 15. Nxb5 $1 {[%emt 0:05:07] Discovered Attack} axb5 {[%emt 0:00:42]} 16. Qxc6 {[%emt 0:00:05]} Qxc6 {[%emt 0:00:07]} 17. Rxc6 {[%emt 0:00:04]} Nb8 {[%emt 0:02:31]} 18. Rb6 {[%emt 0:08:46]} Nd7 {[%emt 0:00:59]} 19. Rd6 {[%emt 0:02:16]} Rxa2 {[%emt 0:00:26]} 20. Bxb5 {[%emt 0:00:06]} Nf6 {[%emt 0:00:08]} 21. Rb1 {[%emt 0:16:15]} Ng4 22. Ng5 {[%emt 0:02:41]} Nxe3 {[%emt 0:03:24]} 23. Nxe6 {[%emt 0:00:18]} Bxe6 {[%emt 0:00:12]} 24. Rxe6 {[%emt 0:00:02]} Nc2 {[%emt 0:00:14]} 25. Rd6 {[%emt 0:10:03]} Nxd4 {[%emt 0:03:57]} 26. Rxd5 {[%emt 0:00:06]} Nxb5 {[%emt 0:00:39]} 27. Rxb5 {[%emt 0:00:02]} Ra4 {[%emt 0:00:49]} 28. g3 {[%emt 0:01:30]} Rd4 {[%emt 0:00:40]} 29. Re1 {[%emt 0:04:05]} Rd2 {[%emt 0:03:35]} 30. Rf1 {[%emt 0:09:14]} Rc8 {[%emt 0:03:14]} 31. Rf2 {[%emt 0:00:08]} Rcc2 {[%emt 0:00:14]} 32. Rxd2 {[%emt 0:00:05]} Rxd2 {[%emt 0:00:09]} 33. Rb7 {[%emt 0:00:06]} h6 $2 {[%emt 0:00:32] [#]} (33... Rd1+ $1 $11 {and Black is okay.} 34. Kg2 Rd2+ 35. Kh3 h6) 34. b4 {[%emt 0:01:10]} (34. h4 $1 $18) 34... Kh7 {[%emt 0:00:14] [#]} ({Better is} 34... Rd1+ $1 $14 35. Kf2 Rd2+ 36. Ke3 Rxh2) 35. b5 {[%emt 0:01:11]} (35. h3 $1 $18) 35... Kg6 {[%emt 0:00:54]} 36. b6 {[%emt 0:02:04]} Rb2 {[%emt 0:00:31]} 37. Rb8 {[%emt 0:02:12]} Kh7 {[%emt 0:02:01]} 38. h3 {[%emt 0:02:09]} Kg6 {[%emt 0:02:14]} 39. Kf1 {[%emt 0:00:55]} Kf7 {[%emt 0:00:19]} 40. Ke1 {[%emt 0:00:37]} Kg6 $2 {[%emt 0:00:31]} (40... Ke6 $16) 41. Kd1 {[%emt 0:17:59]} Rg2 {[%emt 0:18:53]} 42. Rd8 {[%emt 0:06:10]} Rb2 {[%emt 0:00:48]} 43. Rd6+ {[%emt 0:00:06]} Kh5 {[%emt 0:05:10]} 44. Kc1 {[%emt 0:00:27]} Rb5 {[%emt 0:01:19]} 45. Kc2 {[%emt 0:00:47]} g5 {[%emt 0:00:33]} 46. Kc3 {[%emt 0:01:58]} g4 {[%emt 0:01:01]} 47. hxg4+ {[%emt 0:04:23]} fxg4 {[%emt 0:04:39]} 48. f5 {[%emt 0:00:00]} Rxf5 {[%emt 0:00:00]} 49. Kc4 {[%emt 0:00:00]} Rf8 {[%emt 0:00:00]} 50. Kc5 {[%emt 0:00:00]} Rf3 {[%emt 0:00:00]} 51. b7 {[%emt 0:00:00]} Rc3+ {[%emt 0:00:00]} 52. Kb4 {[%emt 0:00:00]} Rc1 {[%emt 0:00:00]} 53. Rd3 {[%emt 0:01:09]} Rb1+ {[%emt 0:00:00]} 54. Rb3 {[%emt 0:00:02]} Rxb3+ 55. Kxb3 {[%emt 0:00:04]} Kg6 {[%emt 0:00:00]} 56. b8=Q {[%emt 0:00:08]} Kg5 {[%emt 0:00:00]} 57. Qf4+ {[%emt 0:00:07]} Kg6 {[%emt 0:00:00]} 58. Qxg4+ {[%emt 0:00:04]} Kh7 {[%emt 0:00:00]} 59. Qf5+ {[%emt 0:00:07]} Kh8 {[%emt 0:00:00]} 60. Qd7 {[%emt 0:00:08]} h5 {[%emt 0:00:00]} 1-0

[Event "Stockholm Chess Challenge 2019"]
[Site "Stockholm"]
[Date "2019.05.01"]
[Round "8.8"]
[White "Ojas Kulkarni"]
[Black "Wernberg, Hugo"]
[Result "1/2-1/2"]
[ECO "A30"]
[WhiteElo "2240"]
[BlackElo "2009"]
[Annotator "NA"]
[PlyCount "66"]
[EventDate "2019.04.26"]
[EventType "swiss"]
[EventCountry "SWE"]
[SourceTitle "playchess.com"]
[Source "ChessBase"]
[SourceQuality "1"]
[TimeControl "40/5400+30:900+30"]

1. c4 {[%emt 0:00:00]} c5 {[%emt 0:00:00]} 2. b3 {[%emt 0:00:00]} Nc6 {[%emt 0:00:22]} 3. Bb2 {[%emt 0:00:03]} e5 {[%emt 0:01:00]} 4. Nc3 {[%emt 0:00:52]} d6 {[%emt 0:00:46]} 5. g3 {[%emt 0:00:08]} g6 {[%emt 0:00:50]} 6. Bg2 {[%emt 0:00:26] A30: Symmetrical English: Double Fianchetto and Hedgehog} Bg7 {[%emt 0:00:13]} 7. d3 {[%emt 0:02:08]} (7. e3 Bf5 8. Nge2 Nge7 9. O-O O-O 10. Ne4 Qd7 11. f4 Rad8 12. d3 b6 13. N2c3 {1-0 (36) Vachier Lagrave,M (2780)-Tari,A (2625) Caleta 2019}) 7... Nf6 {[%emt 0:02:28]} 8. e3 {[%emt 0:00:17]} Be6 {[%emt 0:02:53]} 9. Nd5 $146 {[%emt 0:01:46]} ({Predecessor:} 9. Nge2 d5 10. O-O O-O 11. a3 Rc8 {0-1 (45) Chomet,P (2275)-Bruneau,L Paris 1992}) 9... Bxd5 {[%emt 0:04:59]} 10. cxd5 {[%emt 0:00:09]} Qa5+ {[%emt 0:00:46]} 11. Qd2 {[%emt 0:09:31]} Nb4 {[%emt 0:04:44]} 12. Bc3 {[%emt 0:05:27]} Qb5 {[%emt 0:03:19]} 13. Bxb4 {[%emt 0:08:53]} cxb4 {[%emt 0:00:19]} 14. e4 {[%emt 0:03:52]} Nd7 {[%emt 0:22:53]} 15. Rc1 {[%emt 0:03:58]} Nc5 {[%emt 0:06:27]} 16. Rc4 {[%emt 0:00:08]} a5 {[%emt 0:00:15]} 17. Ne2 {[%emt 0:00:14]} a4 {[%emt 0:01:50]} 18. Nc1 {[%emt 0:00:36]} axb3 {[%emt 0:01:22]} 19. axb3 {[%emt 0:00:13]} O-O {[%emt 0:01:51]} 20. O-O {[%emt 0:02:27]} Ra1 {[%emt 0:02:43]} 21. Qxb4 {[%emt 0:05:08]} Qxb4 {[%emt 0:00:44]} 22. Rxb4 {[%emt 0:00:02]} Rb8 {[%emt 0:02:28]} 23. Ne2 {[%emt 0:11:58]} Ra3 {[%emt 0:16:08]} 24. Rb6 {[%emt 0:03:49]} Ra6 {[%emt 0:00:22]} 25. Rb5 {[%emt 0:00:23]} Nxd3 {[%emt 0:03:05]} 26. Nc3 {[%emt 0:00:20]} Nc5 {[%emt 0:05:05]} 27. Rb1 {[%emt 0:02:19]} Bh6 {[%emt 0:06:05]} 28. Na4 $11 {[%emt 0:05:21]} Nxa4 {[%emt 0:01:01]} 29. bxa4 {[%emt 0:00:05]} Rxa4 {[%emt 0:00:09]} 30. Rxb7 {[%emt 0:00:03]} Rxb7 {[%emt 0:01:03]} 31. Rxb7 {[%emt 0:00:02]} Bc1 {[%emt 0:01:49]} 32. Rb1 {[%emt 0:01:28]} Ba3 {[%emt 0:00:24]} 33. Ra1 {[%emt 0:00:11]} Ra5 {[%emt 0:00:19]} 1/2-1/2

[Event "Stockholm Chess Challenge 2019"]
[Site "Stockholm"]
[Date "2019.05.01"]
[Round "9.3"]
[White "Seo, Jung Min"]
[Black "Sorensen, Hampus"]
[Result "1/2-1/2"]
[ECO "D30"]
[WhiteElo "2386"]
[BlackElo "2319"]
[Annotator "NA"]
[PlyCount "83"]
[EventDate "2019.04.26"]
[EventType "swiss"]
[EventCountry "SWE"]
[SourceTitle "playchess.com"]
[Source "ChessBase"]
[SourceQuality "1"]
[TimeControl "40/5400+30:900+30"]

1. d4 {[%emt 0:00:00]} d5 {[%emt 0:00:00]} 2. c4 {[%emt 0:00:00]} e6 {[%emt 0:01:02]} 3. Nf3 {[%emt 0:00:10]} a6 {[%emt 0:00:07]} 4. cxd5 {[%emt 0:02:13]} exd5 {[%emt 0:00:20]} 5. Nc3 {[%emt 0:00:04]} h6 {[%emt 0:01:36]} 6. Bf4 {[%emt 0:01:15]} Nf6 {[%emt 0:01:03]} 7. e3 {[%emt 0:00:16]} Bd6 {[%emt 0:00:49]} 8. Bxd6 {[%emt 0:09:22]} Qxd6 {[%emt 0:00:20]} 9. Qc2 {[%emt 0:00:27]} O-O {[%emt 0:02:58]} 10. Rc1 {[%emt 0:00:34]} Bg4 {[%emt 0:08:30]} 11. Be2 {[%emt 0:06:57]} Bxf3 {[%emt 0:04:13]} 12. Bxf3 {[%emt 0:00:57]} c6 {[%emt 0:00:55]} 13. O-O {[%emt 0:00:18]} Nbd7 {[%emt 0:00:12]} 14. Rfd1 {[%emt 0:00:33]} Rfd8 {[%emt 0:03:50]} 15. a3 {[%emt 0:00:16]} a5 {[%emt 0:03:04]} 16. Na4 {[%emt 0:01:36]} Qe7 {[%emt 0:02:53]} 17. Qd2 {[%emt 0:02:36]} Ne8 {[%emt 0:03:42]} 18. Be2 {[%emt 0:12:27]} Nd6 {[%emt 0:03:38]} 19. b3 {[%emt 0:02:37]} Re8 {[%emt 0:09:36]} 20. Bd3 {[%emt 0:01:07]} f5 {[%emt 0:02:24]} 21. Nc5 {[%emt 0:00:51]} Nf6 {[%emt 0:03:14]} 22. Qc2 {[%emt 0:01:30]} Nfe4 {[%emt 0:04:09]} 23. Re1 {[%emt 0:01:31]} g6 {[%emt 0:02:30]} 24. f3 {[%emt 0:01:24]} Nf6 {[%emt 0:02:42]} 25. Bf1 {[%emt 0:00:44]} Nd7 {[%emt 0:01:37]} 26. a4 {[%emt 0:01:04]} Nxc5 {[%emt 0:01:23]} 27. dxc5 {[%emt 0:05:05]} Nf7 {[%emt 0:00:44]} 28. Bd3 {[%emt 0:00:39]} Ne5 {[%emt 0:04:46]} 29. Bf1 {[%emt 0:00:31]} Qf6 {[%emt 0:01:42]} 30. Rcd1 {[%emt 0:00:54]} Re6 {[%emt 0:03:46]} 31. e4 {[%emt 0:01:35]} fxe4 {[%emt 0:07:20]} 32. fxe4 {[%emt 0:01:08]} Rae8 {[%emt 0:00:05]} 33. Qd2 {[%emt 0:01:24]} Qe7 {[%emt 0:05:09]} 34. Qxa5 {[%emt 0:01:39]} Ng4 {[%emt 0:02:21]} 35. h3 {[%emt 0:03:16]} Nf6 {[%emt 0:00:06]} 36. Bd3 {[%emt 0:00:11]} Kh7 {[%emt 0:01:20]} 37. Qb4 {[%emt 0:06:35]} Re5 {[%emt 0:10:31]} 38. Rf1 {[%emt 0:01:25]} Nxe4 {[%emt 0:01:20]} 39. Bxe4 {[%emt 0:00:12]} Rxe4 {[%emt 0:00:05]} 40. Rd4 {[%emt 0:00:29]} Qg7 {[%emt 0:02:13]} 41. Rxe4 {[%emt 0:16:02]} Rxe4 {[%emt 0:01:45]} 42. Qd2 {[%emt 0:00:00]} 1/2-1/2

[Event "Stockholm Chess Challenge 2019"]
[Site "Stockholm"]
[Date "2019.05.01"]
[Round "9.5"]
[White "Crevatin, Leo"]
[Black "Ojas Kulkarni"]
[Result "1/2-1/2"]
[ECO "A50"]
[WhiteElo "2208"]
[BlackElo "2240"]
[Annotator "NA"]
[PlyCount "64"]
[EventDate "2019.04.26"]
[EventType "swiss"]
[EventCountry "SWE"]
[SourceTitle "playchess.com"]
[Source "ChessBase"]
[SourceQuality "1"]
[TimeControl "40/5400+30:900+30"]

1. d4 {[%emt 0:00:00]} Nf6 {[%emt 0:00:00]} 2. c4 {[%emt 0:00:00]} b6 {[%emt 0:00:17]} 3. f3 {[%emt 0:00:00]} d6 {[%emt 0:00:14]} 4. Nc3 {[%emt 0:01:11]} e5 {[%emt 0:00:53]} 5. d5 {[%emt 0:00:59]} Be7 {[%emt 0:00:04]} 6. e4 {[%emt 0:01:44]} Nbd7 {[%emt 0:00:07]} 7. Be3 {[%emt 0:00:36]} Nh5 {[%emt 0:00:22]} 8. Qd2 {[%emt 0:03:24]} h6 {[%emt 0:00:02]} 9. g3 {[%emt 0:08:00]} Bg5 {[%emt 0:00:27]} 10. O-O-O {[%emt 0:04:51]} Bxe3 {[%emt 0:02:08]} 11. Qxe3 {[%emt 0:00:05]} Qg5 {[%emt 0:00:06]} 12. Qxg5 {[%emt 0:00:39]} hxg5 {[%emt 0:00:56]} 13. Bh3 {[%emt 0:06:57]} Nf8 {[%emt 0:07:45]} 14. Bxc8 {[%emt 0:00:52]} Rxc8 {[%emt 0:00:01]} 15. Nge2 {[%emt 0:00:07]} Ng6 {[%emt 0:00:10]} 16. Kd2 {[%emt 0:05:30]} Kd7 {[%emt 0:03:00]} 17. Rdf1 {[%emt 0:02:05]} Rh6 {[%emt 0:01:35]} 18. Nd1 {[%emt 0:01:20]} Nf6 {[%emt 0:07:00]} 19. Ne3 {[%emt 0:01:54]} Rch8 {[%emt 0:02:51]} 20. Rf2 {[%emt 0:00:10]} Ne7 {[%emt 0:00:20]} 21. Kd3 {[%emt 0:05:38]} Nh5 {[%emt 0:06:31]} 22. Kd2 {[%emt 0:07:55]} g6 {[%emt 0:16:00]} 23. h4 {[%emt 0:20:33]} gxh4 {[%emt 0:00:14]} 24. Rxh4 {[%emt 0:04:58]} Nf6 {[%emt 0:00:11]} 25. Rxh6 {[%emt 0:01:43]} Rxh6 {[%emt 0:00:01]} 26. Ng4 {[%emt 0:05:51]} Nxg4 {[%emt 0:00:08]} 27. fxg4 {[%emt 0:00:01]} Ke8 {[%emt 0:00:13]} 28. Ng1 {[%emt 0:00:13]} Rh1 {[%emt 0:09:30]} 29. Nf3 {[%emt 0:00:33]} f6 {[%emt 0:00:09]} 30. Rh2 {[%emt 0:03:16]} Rxh2+ {[%emt 0:07:14]} 31. Nxh2 {[%emt 0:00:02]} a5 {[%emt 0:00:10]} 32. a3 {[%emt 0:00:21]} Kd7 {[%emt 0:06:34]} 1/2-1/2